{"text_format":"3","workbook":"xlsx","n_sheets":4,"sheets":["Element 10 - 157","Sheet1","With Headers","157 - Element 10"],"not_rendered":{"images":2,"macros":1,"defined_names":9},"read":"whole","date_system":"1900"}

{"sheet":"Element 10 - 157","index":0,"n_rows":88,"n_cols":16,"rows_kept":88,"merged":[[0,0,1,0],[0,1,1,1],[0,2,0,4],[0,5,1,5],[0,6,1,6],[0,9,0,11],[0,12,1,12],[0,13,1,13],[0,14,1,14],[0,15,1,15],[0,16,1,16],[0,17,1,17],[2,0,2,15],[3,0,6,0],[3,1,4,1],[4,6,5,6],[4,7,5,7],[4,8,5,8],[4,9,5,9],[4,10,5,10],[4,11,5,11],[4,12,5,12],[4,13,5,13],[4,14,5,14],[4,15,5,15],[5,1,6,1],[5,3,6,3],[5,4,6,4],[5,5,6,5],[9,0,10,0],[9,1,10,1],[9,3,10,3],[9,4,10,4],[9,5,10,5],[12,0,12,15],[12,16,12,17],[13,0,15,0],[13,1,15,1],[14,3,15,3],[14,4,15,4],[14,5,15,5],[16,0,17,0],[16,1,17,1],[16,3,17,3],[16,4,17,4],[16,5,17,5],[18,0,19,0],[18,1,19,1],[18,3,19,3],[18,4,19,4],[18,5,19,5],[20,0,21,0],[20,1,21,1],[20,4,21,4],[22,0,23,0],[22,1,23,1],[22,2,23,2],[22,3,23,3],[22,5,23,5],[24,0,25,0],[24,1,25,1],[24,3,25,3],[24,4,25,4],[24,5,25,5],[26,0,26,15],[26,16,26,17],[28,0,29,0],[28,1,29,1],[28,2,29,2],[28,3,29,3],[28,5,29,5],[30,0,30,15],[30,16,30,17],[31,0,32,0],[31,1,32,1],[31,3,32,3],[31,4,32,4],[31,5,32,5],[31,15,32,15],[33,0,34,0],[33,1,34,1],[33,3,34,3],[33,4,34,4],[33,5,34,5],[35,0,37,0],[35,1,37,1],[35,3,37,3],[35,4,37,4],[35,5,36,5],[44,0,46,0],[44,1,46,1],[44,3,46,3],[44,4,46,4],[44,5,46,5],[47,0,48,0],[47,1,48,1],[47,3,48,3],[47,4,48,4],[51,0,52,0],[51,1,52,1],[51,3,52,3],[51,4,52,4],[51,5,52,5],[53,0,53,15],[53,16,53,17],[59,0,61,0],[59,1,61,1],[59,3,61,3],[59,4,61,4],[59,5,61,5],[64,0,64,15],[64,16,64,17],[65,0,66,0],[65,1,66,1],[65,2,66,2],[65,3,66,3],[65,5,66,5],[67,0,68,0],[67,1,68,1],[67,3,68,3],[67,4,68,4],[67,5,68,5],[70,0,71,0],[70,1,71,1],[70,3,71,3],[70,4,71,4],[70,5,71,5],[73,0,74,0],[73,1,74,1],[73,3,74,3],[73,4,74,4],[73,5,74,5],[77,0,77,15],[77,16,77,17],[82,0,83,0],[82,1,83,1],[82,3,83,3],[82,4,83,4],[82,5,83,5],[84,0,85,0],[84,1,85,1],[84,3,85,3],[84,4,85,4],[84,5,85,5],[84,15,85,15],[86,0,87,0],[86,1,87,1],[86,3,87,3],[86,4,87,4],[86,5,87,5]]}
["No.","Activity","Condition",null,null,"Aspect","Impacts","Legal requirement",null,"Criteria",null,null,"Interested party","Significant","Risk","Opportunity"]
[null,null,"Normal","Abnormal","Emergency",null,null,"Y/N","Legal reference","Scale of impact","Likelihood","Significance factor"]
["Vessel operations"]
[1,"Machinery operations (Main propultions unit/ Diesel generators)","✓ ",null,null,"Release of SOx","Air pollution - flue gas emissions include CO2, GHGs as well as NOx which contribute to acidification of oceans, production of ground level ozone,CO and smog, which is harmful when inhaled.","Y","MARPOL Annex VI",4,3,{"$f":"J4*K4","v":12},"Y","Y","Risk"]
[null,null,"✓ ",null,null,"Release of NOx","Air pollution - flue gas emissions include CO2, GHGs as well as NOx which contribute to acidification of oceans, production of ground level ozone,CO and smog, which is harmful when inhaled.","Y","MARPOL Annex VI",4,3,12,"Y","Y","Risk"]
[null,"Consumption of fossil fuels","✓ ",null,null,"Release of greenhouse gases (CO2)"]
[null,null,"✓ ",{"$nulls":3},"Depletion of natural resources","Y","MARPOL Annex VI",4,3,12,"Y","Y","Risk"]
[2,"Usage of Exhaust Gas Cleaning Systems (Scrubbers) for SOx reduction","✓ ",null,null,"Release of acidic effluent to the sea","Disruption of flora and fauna","Y","MARPOL Annex VI",3,2,{"$f":"J8*K8","v":6},"Y","N","Risk"]
[3,"Machinery operation","✓ ",null,null,"Noise produced by machinery","Noise produced above healthy limits. May affect hearing and cause stress related illnesses","Y","SOLAS Chapter II/MLC/COSWP",3,2,6,"Y","N","Risk"]
[4,"Use of hydraulic systems","✓ ",null,null,"Release of hydraulic oils","Water pollution","Y","MARPOL Annex I",5,2,10,"Y","Y","Risk"]
[null,null,"✓ ",{"$nulls":3},"Disruption of flora and fauna","Y","MARPOL Annex I",5,2,10,"Y","Y","Risk"]
[5,"Helicopter transportation activities","✓ ",null,null,"Noise production","Noise produced above healthy limits","Y","SOLAS Chapter II/MLC/COSWP",3,3,9,"Y","N","Risk"]
["Cargo/ Ballast/ Mooring Operations"]
[6,"Venting/IGS operations (Tankers only)","✓ ",null,null,"Release of vapours (VOCs)","Air pollution - flue gas emissions include CO2, GHGs as well as NOx and SOx which contribute to acidification of oceans and production of CO, which is harmful when inhaled","Y","MARPOL Annex VI",4,4,{"$f":"J14*K14","v":16},"Y","Y","Risk"]
[null,null,"✓ ",null,null,"Release of dirty and oily effluent","Water pollution","Y","MARPOL Annex I",3,2,6,"Y","N","Risk"]
[null,null,"✓ ",{"$nulls":3},"Disruption of flora and fauna","Y","MARPOL Annex I",3,2,6,"Y","N","Risk"]
[7,"Bunkering operations","✓ ",null,null,"Bunker spill - leakage from hoses/lines, tank overflow","Water pollution","Y","MARPOL Annex I",5,2,10,"Y","Y","Risk"]
[null,null,"✓ ",{"$nulls":3},"Disruption of flora and fauna","Y","MARPOL Annex I",5,2,10,"Y","Y","Risk"]
[8,"Ship to ship transfer","✓ ",null," ","Spill of cargo - crude oil and chemicals due to leakage from hoses/lines, tank overflow","Water pollution","Y","MARPOL Annex I",5,2,10,"Y","Y","Risk"]
[null,null,"✓ ",null," ",null,"Disruption of flora and fauna","Y","MARPOL Annex I",5,2,10,"Y","Y","Risk"]
[9,"Ballast operations","✓ ",null,null,"Transport of invasive species","Disruption of local flora and fauna","Y","BWM Convention",4,4,16,"Y","Y","Risk"]
[null,null,"✓ ",null,null,"Consumption of fuel for carrying out ballast water exchange","Depletion of natural resources","N"," -",1,3,3,"Y","N","Risk"]
[10,"Accident during vessel loading, storing and carriage of fuel, lube and hydraulic oils"," ",null,"✓ ","Release of fuel, lube and hydraulic oils","Water pollution","Y","MARPOL Annex I",5,2,10,"Y","Y","Risk"]
[{"$nulls":4},"✓ ",null,"Disruption of flora and fauna","Y","MARPOL Annex I",5,2,10,"Y","Y","Risk"]
[11,"Vessel untertaking hot work for loading and unloading of equipment/cargo","✓ ",null,null,"Release of toxic fumes/heavy metals - cadmium, lead, arsenic etc.","Air pollution","Y","MARPOL Annex VI",2,3,6,"Y","N","Risk"]
[null,null,"✓ ",{"$nulls":3},"Overexposure to harmful chemicals","Y","MLC/COSWP",2,3,6,"Y","N","Risk"]
["Vessel Navigation"]
[12,"Vessel navigation","✓ ",null,null,"Underwater din","Disruption of flora and fauna - affects marine mammals which use echolocation e.g whales, dolphins","Y","Country specific guidelines\ne.g. USA: Marine mammals protection act (MMPA)",3,2,{"$f":"J28*K28","v":6},"Y","N","Risk"]
[13,"Vessel navigation error",null," ","✓ ","Release of oil or chemical overboard","Water pollution","Y","MARPOL Annex I",5,2,{"$f":"J29*K29","v":10},"Y","Y","Risk"]
[{"$nulls":4},"✓ ",null,"Disruption of flora and fauna","Y","MARPOL Annex I",5,2,{"$f":"J30*K30","v":10},"Y","Y","Risk"]
["Waste management"]
[14,"ODME/OWS operations","✓ ",null,null,"Discharge of bilge water/slops over the permitted limits due to ODME/OWS malfunction","Water pollution","Y","MARPOL Annex I",5,2,{"$f":"J32*K32","v":10},"Y","Y","Risk","Cleaner operations, reduction in slop quantity to discharge to shore reception, reducing operation costs and increase cargo stowage due to availability of slop tank for cargo"]
[null,null,"✓ ",{"$nulls":3},"Disruption of flora and fauna","Y","MARPOL Annex I",5,2,10,"Y","Y","Risk"]
[15,"Slop disposal (includes decanting of slops) (Tankers only)","✓ ",null,null,"Release of vessel cargo residues","Water pollution","Y","MARPOL Annex I",5,2,10,"Y","Y","Risk"]
[null,null,"✓ ",{"$nulls":3},"Disruption of flora and fauna","Y","MARPOL Annex I",5,2,10,"Y","Y","Risk"]
[16,"Garbage handling/waste disposal","✓ ",null,null,"Waste disposal to sea as permitted under MARPOL","Water pollution","Y","MARPOL Annex V",3,5,15,"Y","Y","Risk"]
[null,null,"✓ ",{"$nulls":3},"Disruption of flora and fauna","Y","MARPOL Annex V",3,5,15,"Y","Y","Risk"]
[null,null,"✓ ",null,null,"Waste disposal ashore","Land pollution - increase need for landfill sites","Y","MARPOL Annex V",3,5,15,"Y","Y","Risk"]
[17,"Disposal of sewage and grey water","✓ ",null,null,"Release of untreated sewage and effluent discharges","Water pollution","Y","MARPOL Annex IV",3,4,12,"Y","Y","Risk"]
[18,"Disposal of radar parts","✓ ",null,null,"Release of radioactive substances","Disruption of flora and fauna","Y","MARPOL Annex V",4,1,4,"Y","N","Risk"]
[19,"Disposal of medicines","✓ ",null,null,"Release of chemicals in medicines (i.e. antibiotics)","Disruption of flora and fauna","Y","MARPOL Annex V",3,1,3,"N","N","Risk"]
[20,"Disposal of medical wastes","✓ ",null,null,"Release of infectious materials","Disruption of flora and fauna","Y","MARPOL Annex V",3,1,3,"N","N","Risk"]
[21,"Disposal of paint chips and vessel grit","✓ ",null,null,"Release of paint chips","Water pollution","Y","MARPOL Annex V",3,1,3,"Y","N","Risk"]
[22,"Disposal of engine switches, pumps, valves, bolts and plates","✓ "," ",null,"Release of heavy metals - cadmium, mercury, lead and chromium","Disruption of flora and fauna","Y","MARPOL Annex VI",4,1,4,"Y","N","Risk"]
[23,"Disposal of used batteries","✓ ",null,null,"Release of electrolytes - heavy metals like cadmium, nickel, lithium, mercury","Water pollution","Y","MARPOL Annex V",4,1,4,"Y","N","Risk"]
[null,null,"✓ ",{"$nulls":3},"Land pollution - leaching of heavy metals from batteries into soil and ground water/water table","Y","MARPOL Annex V",4,3,12,"Y","Y","Risk"]
[null,null,"✓ ",{"$nulls":3},"Disruption of flora and fauna","Y","MARPOL Annex V",4,1,4,"Y","N","Risk"]
[24,"Burning of wastes","✓ ",null,null,"Release of ashes","Water pollution","Y","MARPOL Annex V",2,5,10,"Y","Y","Risk"]
[null,null,"✓ ",null,null,"Release of toxic fumes","Air pollution","Y","MARPOL Annex VI",2,5,10,"Y","Y"]
[25,"Disposal of oily rags","✓ ",null,null,"Accidental discharge of rags in water and release of grease","Water pollution","Y","MARPOL Annex V",4,1,4,"Y","N","Risk"]
[26,"Disposal of electronic items","✓ ",null,null,"Release of polychlorinated biphenyl (PCB)","Land pollution - increase need for landfill sites","Y","MARPOL Annex V",4,2,8,"Y","N","Risk"]
[27,"Disposal of thermometers and similar equipment","✓ ",null,null,"Release of heavy metals - mercury","Land pollution - leaching of heavy metals from batteries into soil and ground water/water table","Y","MARPOL Annex V",3,1,3,"Y","N","Risk"]
[null,null,"✓ ",{"$nulls":3},"Disruption of flora and fauna","Y","MARPOL Annex V",4,1,4,"Y","N","Risk"]
["Vessel Maintenance"]
[28,"Vessel freezer cooling plant operations and overhauling of air-conditioning equipment","✓ ",null,null,"Release of ozone depleating substances (CFCs)","Air pollution - contributes to the depletion of ozone layer","Y","MARPOL Annex VI",4,3,{"$f":"J55*K55","v":12},"Y","Y","Risk"]
[29,"Greasing of wires and deck machinery","✓ ",null,null,"Release of lubricants/grease in water","Water pollution","Y","MARPOL Annex I",3,4,12,"Y","Y","Risk"]
[30,"Use of antifouling paint","✓ ",null,null,"Leaching of chemicals in antifouling paints","Disruption of flora and fauna - affects the endocrine system marine shellfish","Y","Anti-fouling Convention",4,3,12,"Y","Y","Risk"]
[31,"Use of solvents and thinners","✓ ",null,null,"Release of VOCs in thinners and solvents","Overexposure to harmful fumes","Y","MLC/COSWP",4,1,4,"Y","N","Risk"]
[32,"Fumigation","✓ ",null,null,"Release of pesticides","Disruption of flora and fauna","Y","Control of Vectors and Pesticides Act",3,1,3,"Y","N","Risk"]
[33,"Use of antifreeze","✓ ",null,null,"Release of antifreeze fluids","Water pollution","Y","MARPOL Annex II",1,2,2,"Y","N","Risk"]
[null,null,"✓ ",{"$nulls":3},"Disruption of flora and fauna","Y","MARPOL Annex II",2,2,4,"Y","N","Risk"]
[null,null,"✓ ",{"$nulls":3},"Exposure to harmful chemicals","Y","MLC",2,2,4,"Y","N","Risk"]
[34,"Use of asbestos onboard"," ","✓ ",null,"Inhalation and exposure to asbestos","Exposure to asbestos and ill effects on human health. Including asbestosis and mesothelioma","Y","MLC/SOLAS Chapter II-2",4,1,4,"Y","N","Risk"]
[35,"Dry docking - hull cleaning and painting","✓ ",null,null,"Transport of invasive species","Disruption of local flora and fauna","Y","Anti-fouling Convention",4,3,12,"Y","Y","Risk","Incresed fuel efficiency thus saving opex costs ."]
["Offshore vessel operations"]
[36,"Accidents during platform supply vessel operations",null,null,"✓ ","Release of cargo - chemicals, fuel and drilling mud","Water pollution","Y","COLREGs/MARPOL/US EPA",5,2,{"$f":"J66*K66","v":10},"Y","Y","Risk"]
[{"$nulls":4},"✓ ",null,"Disruption of flora and fauna","Y","COLREGs/MARPOL/US EPA",5,2,10,"Y","Y","Risk"]
[37,"Commissioning and hydrotesting of subsea pipelines","✓ ",null,null,"Release of chemical additives","Water pollution","Y","MARPOL",4,1,4,"Y","N","Risk"]
[null,null,"✓ ",{"$nulls":3},"Disruption of flora and fauna","Y","MARPOL",4,1,4,"Y","N","Risk"]
[38,"Handling of multiple anchors (AHTS)","✓ ",null,null,"Sediment disturbance","Disruption of flora and fauna","Y","USA: Clean water act\nUSA: Marine Protection, Research, and Sanctuaries Act",3,5,15,"Y","Y","Risk"]
[39,"Vessel well abandonment","✓ ",null,null,"Presents a physical hazard and a source of water pollution","Water pollution","Y","MARPOL Annex I",4,1,4,"Y","N"]
[null,null,"✓ ",{"$nulls":3},"Disruption of flora and fauna","Y","USA: Clean water act\nUSA: Marine Protection, Research, and Sanctuaries Act",4,1,4,"Y","N","Risk"]
[40,"Vessel pipelaying - burial and trenching","✓ ",null,null,"Sediment disturbance","Disruption of flora and fauna","Y","USA: Clean water act\nUSA: Marine Protection, Research, and Sanctuaries Act",4,1,4,"Y","N","Risk"]
[41,"Vessel seafloor releases","✓ ",null,null,"Release of spud, mud, cuttings and cement","Water pollution","Y","US EPA and other local regulations",5,2,10,"Y","Y","Risk"]
[null,null,"✓ ",{"$nulls":3},"Disruption of flora and fauna","Y","US EPA and other local regulations",5,2,10,"Y","Y","Risk"]
[42,"Use of RoV for subsea inspection operation","✓ ",null,null,"Release of oil and lubricant from RoV","Water pollution","Y","MARPOL Annex I",5,2,{"$f":"J76*K76","v":10},"Y","Y","Risk"]
[43,"Siesmic vessel operations","✓ ",null,null,"Underwater din","Disruption of flora and fauna - affects marine mammals which use echolocation e.g whales, dolphins","Y","Country specific guidelines\ne.g. USA: Marine mammals protection act (MMPA)",5,2,{"$f":"J77*K77","v":10},"Y","Y","Risk"]
["Office "]
[44,"Water consumption","✓ ",null,null,"Use of water","Depletion of natural resources","N"," -",2,5,{"$f":"J79*K79","v":10},"N","Y","Risk","Decreased usage of water, thus reducing overheads"]
[45,"Electricity consumption","✓ ",null,null,"Use of electricty","Depletion of natural resources","N"," -",2,5,10,"N","Y","Risk","Decreased usage of electricity, thus reducing overheads"]
[46,"Daily operations/records/document management","✓ ",null,null,"Use of printing paper","Depletion of natural resources","N"," -",3,5,15,"N","Y","Risk","Decreased usage of paper, thus  reducing overheads"]
[47,"Pest control","✓ ",null,null,"Release of pest poison","Disruption of flora and fauna","Y","Control of Vectors and Pesticides Act",3,1,3,"Y","N","Risk"]
[48,"Office waste disposal","✓ ",null,null,"Wastes produced (packaging materials, detergents, paper, cutlery  etc.)","Depletion of natural resources","N"," -",3,3,9,"Y","N","Risk"]
[null,null,"✓ ",{"$nulls":3},"Land pollution - increase need for landfill sites","N"," -",3,3,9,"Y","N","Risk"]
[49,"Use of electronic equipments - toners/ink cartridges","✓ ",null,null,"Disposal of e-wastes that can be recycled","Land pollution - increase need for landfill sites","Y","Restriction of Hazardous Substances (RoHS) in Electrical and Electronic Equipment (EEE) ",4,4,16,"Y","Y","Risk","Decreased usage of toners/ink catridges, thus reducing overheads"]
[null,null,"✓ ",{"$nulls":3},"Depletion of natural resources","Y","Restriction of Hazardous Substances (RoHS) in Electrical and Electronic Equipment (EEE) ",4,4,16,"Y","Y","Risk"]
[50,"Work travel (air travel, land/sea transportation)","✓ ",null,null,"Noise and production of GHGs","Air pollution","N"," -",3,3,9,"N","N","Risk"]
[null,null,"✓ ",{"$nulls":3},"Depletion of natural resources","N"," -",3,3,9,"N","N","Risk"]

{"sheet":"Sheet1","index":1,"n_rows":82,"n_cols":18,"rows_kept":82,"hidden":true,"merged":[[0,0,1,0],[0,1,1,1],[0,2,0,4],[0,5,1,5],[0,6,1,6],[0,7,0,8],[0,9,0,11],[0,12,1,12],[0,13,1,13],[0,14,1,14],[0,15,1,15],[0,16,1,16],[0,17,1,17],[2,0,3,0],[2,1,3,1],[4,0,5,0],[4,1,5,1],[4,5,5,5],[7,0,9,0],[7,1,9,1],[8,5,9,5],[10,0,11,0],[10,1,11,1],[10,5,11,5],[12,0,13,0],[12,1,13,1],[12,5,13,5],[17,0,18,0],[17,1,18,1],[17,5,18,5],[17,15,18,15],[19,0,20,0],[19,1,20,1],[21,0,22,0],[21,1,22,1],[21,5,22,5],[23,0,24,0],[23,1,24,1],[23,5,24,5],[25,0,27,0],[25,1,27,1],[25,5,26,5],[34,0,36,0],[34,1,36,1],[34,5,36,5],[37,0,38,0],[37,1,38,1],[41,0,42,0],[41,1,42,1],[41,5,42,5],[43,0,44,0],[43,1,44,1],[43,5,44,5],[45,0,46,0],[45,1,46,1],[45,5,46,5],[47,0,48,0],[47,1,48,1],[47,5,48,5],[52,0,54,0],[52,1,54,1],[52,5,54,5],[57,0,58,0],[57,1,58,1],[57,5,58,5],[59,0,60,0],[59,1,60,1],[59,5,60,5],[62,0,63,0],[62,1,63,1],[62,5,63,5],[65,0,66,0],[65,1,66,1],[65,5,66,5],[68,0,69,0],[68,1,69,1],[68,5,69,5],[76,0,77,0],[76,1,77,1],[76,5,77,5],[78,0,79,0],[78,1,79,1],[78,5,79,5],[78,15,79,15],[80,0,81,0],[80,1,81,1],[80,5,81,5]]}
["No.","Activity","Condition",null,null,"Aspect","Impacts","Legal requirement",null,"Criteria",null,null,"Interested party","Significant","Risk","Opportunity",null,"TSM 159"]
[null,null,"Normal","Abnormal","Emergency",null,null,"Y/N","Legal reference","Scale of impact","Likelihood","Significance factor"]
[1,"Machinery operations (Main propultions unit/ Diesel generators)","✓ ",null,null,"Release of SOx","Air pollution - flue gas emissions include CO2, GHGs as well as NOx and SOx which contribute to acidification of oceans and production of CO, which is harmful when inhaled","Y","MARPOL Annex VI",2,5,{"$f":"J3*K3","v":10},"Y","Y","Risk",null,"H","Y"]
[null,null,"✓ ",null,null,"Release of NOx","Air pollution - flue gas emissions include CO2, GHGs as well as NOx which contribute to acidification of oceans and production of ground level ozone and smog, which is harmful when inhaled","Y","MARPOL Annex VI",2,5,{"$f":"J4*K4","v":10},"Y","Y","Risk",null,"H","Y"]
[2,"Consumption of fossil fuels","✓ ",null,null,"Release of greenhouse gases (CO2)","Air pollution","Y","MARPOL Annex VI",2,5,10,"Y","Y","Risk",null,"H","Y"]
[null,null,"✓ ",{"$nulls":3},"Depletion of natural resources","Y","MARPOL Annex VI",2,5,10,"Y","Y","Risk",null,"H","Y"]
[3,"Vessel freezer cooling plant operations and overhauling of air-conditioning equipment","✓ ",null,null,"Release of ozone depleating substances (CFCs)","Air pollution - contributes to the depletion of ozone layer","Y","MARPOL Annex VI",4,3,12,"Y","Y","Risk",null,"H","Y"]
[4,"Venting/IGS operations (Tankers only)","✓ ",null,null,"Release of vapours (VOCs)","Air pollution - flue gas emissions include CO2, GHGs as well as NOx and SOx which contribute to acidification of oceans and production of CO, which is harmful when inhaled","Y","MARPOL Annex VI",4,4,16,"Y","Y","Risk",null,"VH","N"]
[null,null,"✓ ",null,null,"Release of dirty and oily effluent","Water pollution","Y","MARPOL Annex I",3,4,12,"Y","Y","Risk",null,"H","Y"]
[null,null,"✓ ",{"$nulls":3},"Disruption of flora and fauna","Y","MARPOL Annex I",3,4,12,"Y","Y","Risk",null,"H","Y"]
[5,"Bunkering operations","✓ ",null,null,"Bunker spill - leakage from hoses/lines, tank overflow","Water pollution","Y","MARPOL Annex I/COLREGs",5,1,5,"Y","Y","Risk",null,"H","Y"]
[null,null,"✓ ",{"$nulls":3},"Disruption of flora and fauna","Y","MARPOL Annex I/COLREGs",5,1,5,"Y","Y","Risk",null,"H","Y"]
[6,"Ship to ship transfer","✓ ",null," ","Spill of cargo - crude oil and chemicals due to leakage from hoses/lines, tank overflow","Water pollution","Y","MARPOL Annex I",5,2,10,"Y","Y","Risk",null,"H","Y"]
[null,null,"✓ ",null," ",null,"Disruption of flora and fauna","Y","MARPOL Annex I",5,2,10,"Y","Y","Risk",null,"H","Y"]
[7,"Greasing of wires and deck machinery","✓ ",null,null,"Release of lubricants/grease in water","Water pollution","Y","MARPOL Annex I",3,4,12,"Y","Y","Risk",null,"H","Y/N"]
[8,"Machinery operation","✓ ",null,null,"Noise produced by machinery","Noise produced above healthy limits. May affect hearing and cause stress related illnesses","Y","SOLAS Chapter II/MLC/COSWP",3,2,6,"Y","N","Risk",null,"M"]
[9,"Vessel navigation","✓ ",null,null,"Underwater din","Disruption of flora and fauna - affects marine mammals which use echolocation e.g whales, dolphins","Y","Country specific guidelines\ne.g. USA: Marine mammals protection act (MMPA)",2,2,4,"Y","N","Risk"]
[10,"ODME/OWS operations","✓ ",null,null,"Discharge of bilge water/slops over the permitted limits due to ODME/OWS malfunction","Water pollution","Y","MARPOL Annex I",5,1,5,"Y","Y","Risk","Cleaner operations, reduction in slop quantity to discharge to shore reception, reducing operation costs and increase cargo stowage due to availability of slop tank for cargo","H","Y"]
[null,null,"✓ ",{"$nulls":3},"Disruption of flora and fauna","Y","MARPOL Annex I",5,1,5,"Y","Y","Risk",null,"H","Y"]
[11,"Ballast operations","✓ ",null,null,"Transport of invasive species","Disruption of local flora and fauna","Y","BWM Convention",3,4,12,"Y","Y","Risk",null,"H","Y"]
[null,null,"✓ ",null,null,"Consumption of fuel for carrying out ballast water exchange","Depletion of natural resources","N"," -",1,3,3,"Y","N"]
[12,"Slop disposal (includes decanting of slops) (Tankers only)","✓ ",null,null,"Release of vessel cargo residues","Water pollution","Y","MARPOL Annex I",4,3,12,"Y","Y","Risk",null,"H","Y"]
[null,null,"✓ ",{"$nulls":3},"Disruption of flora and fauna","Y","MARPOL Annex I",4,3,12,"Y","Y","Risk",null,"H","Y"]
[13,"Use of hydraulic systems","✓ ",null,null,"Release of hydraulic oils","Water pollution","Y","MARPOL Annex I",5,2,10,"Y","Y","Risk",null,"H","Y"]
[null,null,"✓ ",{"$nulls":3},"Disruption of flora and fauna","Y","MARPOL Annex I",5,2,10,"Y","Y","Risk",null,"H","Y"]
[14,"Garbage handling/waste disposal","✓ ",null,null,"Waste disposal to sea as permitted under MARPOL","Water pollution","Y","MARPOL Annex V",3,5,15,"Y","Y","Risk",null,"H","Y"]
[null,null,"✓ ",{"$nulls":3},"Disruption of flora and fauna","Y","MARPOL Annex V",3,5,15,"Y","Y","Risk",null,null,"Y"]
[null,null,"✓ ",null,null,"Waste disposal ashore","Land pollution - increase need for landfill sites","Y","MARPOL Annex V",3,5,15,"Y","Y","Risk",null,"H","Y"]
[15,"Disposal of sewage and grey water","✓ ",null,null,"Release of untreated sewage and effluent discharges","Water pollution","Y","MARPOL Annex IV",3,4,12,"Y","Y","Risk",null,"H","Y"]
[16,"Disposal of radar parts","✓ ",null,null,"Release of radioactive substances","Disruption of flora and fauna","Y","MARPOL Annex V",4,1,4,"Y","N","Risk"]
[17,"Disposal of medicines","✓ ",null,null,"Release of chemicals in medicines (i.e. antibiotics)","Disruption of flora and fauna","Y","MARPOL Annex V",3,1,3,"N","N","Risk"]
[18,"Disposal of medical wastes","✓ ",null,null,"Release of infectious materials","Disruption of flora and fauna","Y","MARPOL Annex V",3,1,3,"N","N","Risk"]
[19,"Disposal of paint chips and vessel grit","✓ ",null,null,"Release of paint chips","Water pollution","Y","MARPOL Annex V",3,1,3,"Y","N","Risk"]
[20,"Disposal of engine switches, pumps, valves, bolts and plates","✓ "," ",null,"Release of heavy metals - cadmium, mercury, lead and chromium","Disruption of flora and fauna","Y","MARPOL Annex VI",4,1,4,"Y","N","Risk"]
[21,"Disposal of used batteries","✓ ",null,null,"Release of electrolytes - heavy metals like cadmium, nickel, lithium, mercury","Water pollution","Y","MARPOL Annex V",4,1,4,"Y","N","Risk"]
[null,null,"✓ ",{"$nulls":3},"Land pollution - leaching of heavy metals from batteries into soil and ground water/water table","Y","MARPOL Annex V",4,3,12,"Y","Y","Risk",null,"H","N"]
[null,null,"✓ ",{"$nulls":3},"Disruption of flora and fauna","Y","MARPOL Annex V",4,1,4,"Y","N","Risk"]
[22,"Burning of wastes","✓ ",null,null,"Release of ashes","Water pollution","Y","MARPOL Annex V",2,5,10,"Y","Y","Risk",null,"H","Y"]
[null,null,"✓ ",null,null,"Release of toxic fumes","Air pollution","Y","MARPOL Annex VI",2,5,10,"Y","Y",null,null,"H","N"]
[23,"Disposal of oily rags","✓ ",null,null,"Accidental discharge of rags in water and release of grease","Water pollution","Y","MARPOL Annex V",3,1,3,"Y","N","Risk"]
[24,"Disposal of electronic items","✓ ",null,null,"Release of polychlorinated biphenyl (PCB)","Land pollution - increase need for landfill sites","Y","MARPOL Annex V",4,2,8,"Y","N","Risk",null,"M"]
[25,"Disposal of thermometers and similar equipment","✓ ",null,null,"Release of heavy metals - mercury","Land pollution - leaching of heavy metals from batteries into soil and ground water/water table","Y","MARPOL Annex V",3,1,3,"Y","N"]
[null,null,"✓ ",{"$nulls":3},"Disruption of flora and fauna","Y","MARPOL Annex V",4,1,4,"Y","N","Risk"]
[26,"Accident during vessel loading, storing and carriage of fuel, lube and hydraulic oils"," ",null,"✓ ","Release of fuel, lube and hydraulic oils","Water pollution","Y","MARPOL Annex I",5,1,5,"Y","N","Risk",null,"M"]
[{"$nulls":4},"✓ ",null,"Disruption of flora and fauna","Y","MARPOL Annex I",5,1,5,"Y","N","Risk",null,"M"]
[27,"Vessel navigation error",null," ","✓ ","Release of oil or chemical overboard","Water pollution","Y","MARPOL Annex I",5,2,10,"Y","Y","Risk",null,"H","Y"]
[{"$nulls":4},"✓ ",null,"Disruption of flora and fauna","Y","MARPOL Annex I",5,2,10,"Y","Y","Risk",null,"H","Y"]
[28,"Vessel navigation - speeding of vessel",null," ","✓ ","Marine accident/pollution","Water pollution","Y","MARPOL Annex I/COLREGs",5,2,10,"Y","Y","Risk",null,"H","N"]
[{"$nulls":3}," ","✓ ",null,"Disruption of flora and fauna","Y","MARPOL Annex I/COLREGs",5,2,10,"Y","Y","Risk",null,"H","N"]
[29,"Use of antifouling paint","✓ ",null,null,"Leaching of chemicals in antifouling paints","Disruption of flora and fauna - affects the endocrine system marine shellfish","Y","Anti-fouling Convention",4,3,12,"Y","Y","Risk",null,"H","Y"]
[30,"Use of solvents and thinners","✓ ",null,null,"Release of VOCs in thinners and solvents","Overexposure to harmful fumes","Y","MLC/COSWP",4,1,4,"Y","N","Risk"]
[31,"Fumigation","✓ ",null,null,"Release of pesticides","Disruption of flora and fauna","Y","Control of Vectors and Pesticides Act",3,1,3,"Y","N","Risk"]
[32,"Use of antifreeze","✓ ",null,null,"Release of antifreeze fluids","Water pollution","Y","MARPOL Annex II",1,2,2,"Y","N","Risk"]
[null,null,"✓ ",{"$nulls":3},"Disruption of flora and fauna","Y","MARPOL Annex II",2,2,4,"Y","N","Risk"]
[null,null,"✓ ",{"$nulls":3},"Exposure to harmful chemicals","Y","MLC",2,2,4,"Y","N","Risk"]
[33,"Use of asbestos onboard"," ","✓ ",null,"Inhalation and exposure to asbestos","Exposure to asbestos and ill effects on human health. Including asbestosis and mesothelioma","Y","MLC/SOLAS Chapter II-2",4,1,4,"Y","N","Risk"]
[34,"Dry docking - hull cleaning and painting","✓ ",null,null,"Transport of invasive species","Disruption of local flora and fauna","Y","Anti-fouling Convention",4,3,12,"Y","Y","Risk",null,"H","Y"]
[35,"Accidents during platform supply vessel operations",null,null,"✓ ","Release of cargo - chemicals, fuel and drilling mud","Water pollution","Y","COLREGs/MARPOL/US EPA",5,2,10,"Y","Y","Risk",null,"M","Y"]
[{"$nulls":4},"✓ ",null,"Disruption of flora and fauna","Y","COLREGs/MARPOL/US EPA",5,2,10,"Y","Y","Risk",null,null,"Y"]
[36,"Commissioning and hydrotesting of subsea pipelines","✓ ",null,null,"Release of chemical additives","Water pollution","Y","MARPOL",4,1,4,"Y","N","Risk"]
[null,null,"✓ ",{"$nulls":3},"Disruption of flora and fauna","Y","MARPOL",4,1,4,"Y","N","Risk"]
[37,"Handling of multiple anchors (AHTS)","✓ ",null,null,"Sediment disturbance","Disruption of flora and fauna","Y","USA: Clean water act\nUSA: Marine Protection, Research, and Sanctuaries Act",3,5,15,"Y","Y","Risk",null,"VH","N"]
[38,"Vessel well abandonment","✓ ",null,null,"Presents a physical hazard and a source of water pollution","Water pollution","Y","MARPOL Annex I",4,1,4,"Y","N"]
[null,null,"✓ ",{"$nulls":3},"Disruption of flora and fauna","Y","USA: Clean water act\nUSA: Marine Protection, Research, and Sanctuaries Act",4,1,4,"Y","N","Risk"]
[39,"Vessel pipelaying - burial and trenching","✓ ",null,null,"Sediment disturbance","Disruption of flora and fauna","Y","USA: Clean water act\nUSA: Marine Protection, Research, and Sanctuaries Act",4,1,4,"Y","N","Risk"]
[40,"Vessel seafloor releases","✓ ",null,null,"Release of spud, mud, cuttings and cement","Water pollution","Y","US EPA and other local regulations",5,2,10,"Y","Y","Risk",null,"H","N"]
[null,null,"✓ ",{"$nulls":3},"Disruption of flora and fauna","Y","US EPA and other local regulations",5,2,10,"Y","Y","Risk",null,"H","N"]
[41,"Helicopter transportation activities","✓ ",null,null,"Noise production","Noise produced above healthy limits","Y","SOLAS Chapter II/MLC/COSWP",3,3,{"$f":"J68*K68","v":9},"Y","N","Risk",null,"M"]
[42,"Vessel untertaking hot work for loading and unloading of equipment/cargo","✓ ",null,null,"Release of toxic fumes/heavy metals - cadmium, lead, arsenic etc.","Air pollution","Y","MARPOL Annex VI",2,3,6,"Y","N","Risk",null,"M"]
[null,null,"✓ ",{"$nulls":3},"Overexposure to harmful chemicals","Y","MLC/COSWP",2,3,6,"Y","N","Risk",null,"M"]
[43,"Use of RoV for subsea inspection operation","✓ ",null,null,"Release of oil and lubricant from RoV","Water pollution","Y","MARPOL Annex I",5,2,10,"Y","Y","Risk",null,"H","Y"]
[44,"Siesmic vessel operations","✓ ",null,null,"Underwater din","Disruption of flora and fauna - affects marine mammals which use echolocation e.g whales, dolphins","Y","Country specific guidelines\ne.g. USA: Marine mammals protection act (MMPA)",5,4,20,"Y","Y","Risk",null,"VH","N"]
[45,"Water consumption","✓ ",null,null,"Use of water","Depletion of natural resources","N"," -",2,5,10,"N","Y","Risk","Decreased usage of water, thus reducing overheads","H","Y"]
[46,"Electricity consumption","✓ ",null,null,"Use of electricty","Depletion of natural resources","N"," -",2,5,10,"N","Y","Risk","Decreased usage of electricity, thus reducing overheads","H","Y"]
[47,"Daily operations/records/document management","✓ ",null,null,"Use of printing paper","Depletion of natural resources","N"," -",3,5,15,"N","Y","Risk","Decreased usage of paper, thus  reducing overheads","VH","Y"]
[48,"Pest control","✓ ",null,null,"Release of pest poison","Disruption of flora and fauna","Y","Control of Vectors and Pesticides Act",3,1,3,"Y","N","Risk"]
[49,"Office waste disposal","✓ ",null,null,"Wastes produced (packaging materials, detergents, paper, cutlery  etc.)","Depletion of natural resources","N"," -",3,5,15,"Y","Y","Risk",null,"VH","N"]
[null,null,"✓ ",{"$nulls":3},"Land pollution - increase need for landfill sites","N"," -",3,5,15,"Y","Y","Risk",null,"H","N"]
[50,"Use of electronic equipments - toners/ink cartridges","✓ ",null,null,"Disposal of e-wastes that can be recycled","Land pollution - increase need for landfill sites","Y","Restriction of Hazardous Substances (RoHS) in Electrical and Electronic Equipment (EEE) ",4,4,16,"Y","Y","Risk","Decreased usage of toners/ink catridges, thus reducing overheads","VH","Y"]
[null,null,"✓ ",{"$nulls":3},"Depletion of natural resources","Y","Restriction of Hazardous Substances (RoHS) in Electrical and Electronic Equipment (EEE) ",4,4,16,"Y","Y","Risk",null,"VH","Y"]
[51,"Work travel (air travel, land/sea transportation)","✓ ",null,null,"Noise and production of GHGs","Air pollution","N"," -",5,5,25,"N","Y","Risk",null,"VH","Y/N"]
[null,null,"✓ ",{"$nulls":3},"Depletion of natural resources","N"," -",4,5,20,"N","Y","Risk",null,"VH","Y/N"]

{"sheet":"With Headers","index":2,"n_rows":89,"n_cols":18,"rows_kept":89,"hidden":true,"merged":[[0,0,1,0],[0,1,1,1],[0,2,0,4],[0,5,1,5],[0,6,1,6],[0,9,0,11],[0,12,1,12],[0,13,1,13],[0,14,1,14],[0,15,1,15],[0,16,1,16],[0,17,1,17],[2,0,2,15],[3,0,6,0],[3,1,4,1],[5,1,6,1],[5,5,6,5],[8,0,9,0],[8,1,9,1],[8,5,9,5],[11,0,11,15],[11,16,11,17],[12,0,14,0],[12,1,14,1],[13,5,14,5],[15,0,16,0],[15,1,16,1],[15,5,16,5],[17,0,18,0],[17,1,18,1],[17,5,18,5],[19,0,20,0],[19,1,20,1],[21,0,22,0],[21,1,22,1],[21,5,22,5],[23,0,24,0],[23,1,24,1],[23,5,24,5],[25,0,25,15],[25,16,25,17],[27,0,28,0],[27,1,28,1],[27,5,28,5],[29,0,30,0],[29,1,30,1],[29,5,30,5],[31,0,31,15],[31,16,31,17],[32,0,33,0],[32,1,33,1],[32,5,33,5],[32,15,33,15],[34,0,35,0],[34,1,35,1],[34,5,35,5],[36,0,38,0],[36,1,38,1],[36,5,37,5],[45,0,47,0],[45,1,47,1],[45,5,47,5],[48,0,49,0],[48,1,49,1],[52,0,53,0],[52,1,53,1],[52,5,53,5],[54,0,54,15],[54,16,54,17],[60,0,62,0],[60,1,62,1],[60,5,62,5],[65,0,65,15],[65,16,65,17],[66,0,67,0],[66,1,67,1],[66,5,67,5],[68,0,69,0],[68,1,69,1],[68,5,69,5],[71,0,72,0],[71,1,72,1],[71,5,72,5],[74,0,75,0],[74,1,75,1],[74,5,75,5],[78,0,78,15],[78,16,78,17],[83,0,84,0],[83,1,84,1],[83,5,84,5],[85,0,86,0],[85,1,86,1],[85,5,86,5],[85,15,86,15],[87,0,88,0],[87,1,88,1],[87,5,88,5]]}
["No.","Activity","Condition",null,null,"Aspect","Impacts","Legal requirement",null,"Criteria",null,null,"Interested party","Significant","Risk","Opportunity",null,"TSM 159"]
[null,null,"Normal","Abnormal","Emergency",null,null,"Y/N","Legal reference","Scale of impact","Likelihood","Significance factor"]
["Vessel operations"]
[1,"Machinery operations (Main propultions unit/ Diesel generators)","✓ ",null,null,"Release of SOx","Air pollution - flue gas emissions include CO2, GHGs as well as NOx and SOx which contribute to acidification of oceans and production of CO, which is harmful when inhaled","Y","MARPOL Annex VI",2,5,{"$f":"J4*K4","v":10},"Y","Y","Risk",null,"H","Y"]
[null,null,"✓ ",null,null,"Release of NOx","Air pollution - flue gas emissions include CO2, GHGs as well as NOx which contribute to acidification of oceans and production of ground level ozone and smog, which is harmful when inhaled","Y","MARPOL Annex VI",2,5,10,"Y","Y","Risk",null,"H","Y"]
[null,"Consumption of fossil fuels","✓ ",null,null,"Release of greenhouse gases (CO2)","Air pollution","Y","MARPOL Annex VI",2,5,10,"Y","Y","Risk",null,"H","Y"]
[null,null,"✓ ",{"$nulls":3},"Depletion of natural resources","Y","MARPOL Annex VI",2,5,10,"Y","Y","Risk",null,"H","Y"]
[8,"Machinery operation","✓ ",null,null,"Noise produced by machinery","Noise produced above healthy limits. May affect hearing and cause stress related illnesses","Y","SOLAS Chapter II/MLC/COSWP",3,2,6,"Y","N","Risk",null,"M"]
[13,"Use of hydraulic systems","✓ ",null,null,"Release of hydraulic oils","Water pollution","Y","MARPOL Annex I",5,2,10,"Y","Y","Risk",null,"H","Y"]
[null,null,"✓ ",{"$nulls":3},"Disruption of flora and fauna","Y","MARPOL Annex I",5,2,10,"Y","Y","Risk",null,"H","Y"]
[41,"Helicopter transportation activities","✓ ",null,null,"Noise production","Noise produced above healthy limits","Y","SOLAS Chapter II/MLC/COSWP",3,3,9,"Y","N","Risk",null,"M"]
["Cargo/ Ballast/ Mooring Operations"]
[4,"Venting/IGS operations (Tankers only)","✓ ",null,null,"Release of vapours (VOCs)","Air pollution - flue gas emissions include CO2, GHGs as well as NOx and SOx which contribute to acidification of oceans and production of CO, which is harmful when inhaled","Y","MARPOL Annex VI",4,4,{"$f":"J13*K13","v":16},"Y","Y","Risk",null,"VH","N"]
[null,null,"✓ ",null,null,"Release of dirty and oily effluent","Water pollution","Y","MARPOL Annex I",3,4,12,"Y","Y","Risk",null,"H","Y"]
[null,null,"✓ ",{"$nulls":3},"Disruption of flora and fauna","Y","MARPOL Annex I",3,4,12,"Y","Y","Risk",null,"H","Y"]
[5,"Bunkering operations","✓ ",null,null,"Bunker spill - leakage from hoses/lines, tank overflow","Water pollution","Y","MARPOL Annex I/COLREGs",5,1,5,"Y","Y","Risk",null,"H","Y"]
[null,null,"✓ ",{"$nulls":3},"Disruption of flora and fauna","Y","MARPOL Annex I/COLREGs",5,1,5,"Y","Y","Risk",null,"H","Y"]
[6,"Ship to ship transfer","✓ ",null," ","Spill of cargo - crude oil and chemicals due to leakage from hoses/lines, tank overflow","Water pollution","Y","MARPOL Annex I",5,2,10,"Y","Y","Risk",null,"H","Y"]
[null,null,"✓ ",null," ",null,"Disruption of flora and fauna","Y","MARPOL Annex I",5,2,10,"Y","Y","Risk",null,"H","Y"]
[11,"Ballast operations","✓ ",null,null,"Transport of invasive species","Disruption of local flora and fauna","Y","BWM Convention",3,4,12,"Y","Y","Risk",null,"H","Y"]
[null,null,"✓ ",null,null,"Consumption of fuel for carrying out ballast water exchange","Depletion of natural resources","N"," -",1,3,3,"Y","N"]
[26,"Accident during vessel loading, storing and carriage of fuel, lube and hydraulic oils"," ",null,"✓ ","Release of fuel, lube and hydraulic oils","Water pollution","Y","MARPOL Annex I",5,1,5,"Y","N","Risk",null,"M"]
[{"$nulls":4},"✓ ",null,"Disruption of flora and fauna","Y","MARPOL Annex I",5,1,5,"Y","N","Risk",null,"M"]
[42,"Vessel untertaking hot work for loading and unloading of equipment/cargo","✓ ",null,null,"Release of toxic fumes/heavy metals - cadmium, lead, arsenic etc.","Air pollution","Y","MARPOL Annex VI",2,3,6,"Y","N","Risk",null,"M"]
[null,null,"✓ ",{"$nulls":3},"Overexposure to harmful chemicals","Y","MLC/COSWP",2,3,6,"Y","N","Risk",null,"M"]
["Vessel Navigation"]
[9,"Vessel navigation","✓ ",null,null,"Underwater din","Disruption of flora and fauna - affects marine mammals which use echolocation e.g whales, dolphins","Y","Country specific guidelines\ne.g. USA: Marine mammals protection act (MMPA)",2,2,{"$f":"J27*K27","v":4},"Y","N","Risk"]
[27,"Vessel navigation error",null," ","✓ ","Release of oil or chemical overboard","Water pollution","Y","MARPOL Annex I",5,2,{"$f":"J28*K28","v":10},"Y","Y","Risk",null,"H","Y"]
[{"$nulls":4},"✓ ",null,"Disruption of flora and fauna","Y","MARPOL Annex I",5,2,{"$f":"J29*K29","v":10},"Y","Y","Risk",null,"H","Y"]
[28,"Vessel navigation - speeding of vessel",null," ","✓ ","Marine accident/pollution","Water pollution","Y","MARPOL Annex I/COLREGs",5,2,{"$f":"J30*K30","v":10},"Y","Y","Risk",null,"H","N"]
[{"$nulls":3}," ","✓ ",null,"Disruption of flora and fauna","Y","MARPOL Annex I/COLREGs",5,2,{"$f":"J31*K31","v":10},"Y","Y","Risk",null,"H","N"]
["Waste management"]
[10,"ODME/OWS operations","✓ ",null,null,"Discharge of bilge water/slops over the permitted limits due to ODME/OWS malfunction","Water pollution","Y","MARPOL Annex I",5,1,{"$f":"J33*K33","v":5},"Y","Y","Risk","Cleaner operations, reduction in slop quantity to discharge to shore reception, reducing operation costs and increase cargo stowage due to availability of slop tank for cargo","H","Y"]
[null,null,"✓ ",{"$nulls":3},"Disruption of flora and fauna","Y","MARPOL Annex I",5,1,5,"Y","Y","Risk",null,"H","Y"]
[12,"Slop disposal (includes decanting of slops) (Tankers only)","✓ ",null,null,"Release of vessel cargo residues","Water pollution","Y","MARPOL Annex I",4,3,12,"Y","Y","Risk",null,"H","Y"]
[null,null,"✓ ",{"$nulls":3},"Disruption of flora and fauna","Y","MARPOL Annex I",4,3,12,"Y","Y","Risk",null,"H","Y"]
[14,"Garbage handling/waste disposal","✓ ",null,null,"Waste disposal to sea as permitted under MARPOL","Water pollution","Y","MARPOL Annex V",3,5,15,"Y","Y","Risk",null,"H","Y"]
[null,null,"✓ ",{"$nulls":3},"Disruption of flora and fauna","Y","MARPOL Annex V",3,5,15,"Y","Y","Risk",null,null,"Y"]
[null,null,"✓ ",null,null,"Waste disposal ashore","Land pollution - increase need for landfill sites","Y","MARPOL Annex V",3,5,15,"Y","Y","Risk",null,"H","Y"]
[15,"Disposal of sewage and grey water","✓ ",null,null,"Release of untreated sewage and effluent discharges","Water pollution","Y","MARPOL Annex IV",3,4,12,"Y","Y","Risk",null,"H","Y"]
[16,"Disposal of radar parts","✓ ",null,null,"Release of radioactive substances","Disruption of flora and fauna","Y","MARPOL Annex V",4,1,4,"Y","N","Risk"]
[17,"Disposal of medicines","✓ ",null,null,"Release of chemicals in medicines (i.e. antibiotics)","Disruption of flora and fauna","Y","MARPOL Annex V",3,1,3,"N","N","Risk"]
[18,"Disposal of medical wastes","✓ ",null,null,"Release of infectious materials","Disruption of flora and fauna","Y","MARPOL Annex V",3,1,3,"N","N","Risk"]
[19,"Disposal of paint chips and vessel grit","✓ ",null,null,"Release of paint chips","Water pollution","Y","MARPOL Annex V",3,1,3,"Y","N","Risk"]
[20,"Disposal of engine switches, pumps, valves, bolts and plates","✓ "," ",null,"Release of heavy metals - cadmium, mercury, lead and chromium","Disruption of flora and fauna","Y","MARPOL Annex VI",4,1,4,"Y","N","Risk"]
[21,"Disposal of used batteries","✓ ",null,null,"Release of electrolytes - heavy metals like cadmium, nickel, lithium, mercury","Water pollution","Y","MARPOL Annex V",4,1,4,"Y","N","Risk"]
[null,null,"✓ ",{"$nulls":3},"Land pollution - leaching of heavy metals from batteries into soil and ground water/water table","Y","MARPOL Annex V",4,3,12,"Y","Y","Risk",null,"H","N"]
[null,null,"✓ ",{"$nulls":3},"Disruption of flora and fauna","Y","MARPOL Annex V",4,1,4,"Y","N","Risk"]
[22,"Burning of wastes","✓ ",null,null,"Release of ashes","Water pollution","Y","MARPOL Annex V",2,5,10,"Y","Y","Risk",null,"H","Y"]
[null,null,"✓ ",null,null,"Release of toxic fumes","Air pollution","Y","MARPOL Annex VI",2,5,10,"Y","Y",null,null,"H","N"]
[23,"Disposal of oily rags","✓ ",null,null,"Accidental discharge of rags in water and release of grease","Water pollution","Y","MARPOL Annex V",3,1,3,"Y","N","Risk"]
[24,"Disposal of electronic items","✓ ",null,null,"Release of polychlorinated biphenyl (PCB)","Land pollution - increase need for landfill sites","Y","MARPOL Annex V",4,2,8,"Y","N","Risk",null,"M"]
[25,"Disposal of thermometers and similar equipment","✓ ",null,null,"Release of heavy metals - mercury","Land pollution - leaching of heavy metals from batteries into soil and ground water/water table","Y","MARPOL Annex V",3,1,3,"Y","N"]
[null,null,"✓ ",{"$nulls":3},"Disruption of flora and fauna","Y","MARPOL Annex V",4,1,4,"Y","N","Risk"]
["Vessel Maintenance"]
[3,"Vessel freezer cooling plant operations and overhauling of air-conditioning equipment","✓ ",null,null,"Release of ozone depleating substances (CFCs)","Air pollution - contributes to the depletion of ozone layer","Y","MARPOL Annex VI",4,3,{"$f":"J56*K56","v":12},"Y","Y","Risk",null,"H","Y"]
[7,"Greasing of wires and deck machinery","✓ ",null,null,"Release of lubricants/grease in water","Water pollution","Y","MARPOL Annex I",3,4,12,"Y","Y","Risk",null,"H","Y/N"]
[29,"Use of antifouling paint","✓ ",null,null,"Leaching of chemicals in antifouling paints","Disruption of flora and fauna - affects the endocrine system marine shellfish","Y","Anti-fouling Convention",4,3,12,"Y","Y","Risk",null,"H","Y"]
[30,"Use of solvents and thinners","✓ ",null,null,"Release of VOCs in thinners and solvents","Overexposure to harmful fumes","Y","MLC/COSWP",4,1,4,"Y","N","Risk"]
[31,"Fumigation","✓ ",null,null,"Release of pesticides","Disruption of flora and fauna","Y","Control of Vectors and Pesticides Act",3,1,3,"Y","N","Risk"]
[32,"Use of antifreeze","✓ ",null,null,"Release of antifreeze fluids","Water pollution","Y","MARPOL Annex II",1,2,2,"Y","N","Risk"]
[null,null,"✓ ",{"$nulls":3},"Disruption of flora and fauna","Y","MARPOL Annex II",2,2,4,"Y","N","Risk"]
[null,null,"✓ ",{"$nulls":3},"Exposure to harmful chemicals","Y","MLC",2,2,4,"Y","N","Risk"]
[33,"Use of asbestos onboard"," ","✓ ",null,"Inhalation and exposure to asbestos","Exposure to asbestos and ill effects on human health. Including asbestosis and mesothelioma","Y","MLC/SOLAS Chapter II-2",4,1,4,"Y","N","Risk"]
[34,"Dry docking - hull cleaning and painting","✓ ",null,null,"Transport of invasive species","Disruption of local flora and fauna","Y","Anti-fouling Convention",4,3,12,"Y","Y","Risk",null,"H","Y"]
["Offshore vessel operations"]
[35,"Accidents during platform supply vessel operations",null,null,"✓ ","Release of cargo - chemicals, fuel and drilling mud","Water pollution","Y","COLREGs/MARPOL/US EPA",5,2,{"$f":"J67*K67","v":10},"Y","Y","Risk",null,"M","Y"]
[{"$nulls":4},"✓ ",null,"Disruption of flora and fauna","Y","COLREGs/MARPOL/US EPA",5,2,10,"Y","Y","Risk",null,null,"Y"]
[36,"Commissioning and hydrotesting of subsea pipelines","✓ ",null,null,"Release of chemical additives","Water pollution","Y","MARPOL",4,1,4,"Y","N","Risk"]
[null,null,"✓ ",{"$nulls":3},"Disruption of flora and fauna","Y","MARPOL",4,1,4,"Y","N","Risk"]
[37,"Handling of multiple anchors (AHTS)","✓ ",null,null,"Sediment disturbance","Disruption of flora and fauna","Y","USA: Clean water act\nUSA: Marine Protection, Research, and Sanctuaries Act",3,5,15,"Y","Y","Risk",null,"VH","N"]
[38,"Vessel well abandonment","✓ ",null,null,"Presents a physical hazard and a source of water pollution","Water pollution","Y","MARPOL Annex I",4,1,4,"Y","N"]
[null,null,"✓ ",{"$nulls":3},"Disruption of flora and fauna","Y","USA: Clean water act\nUSA: Marine Protection, Research, and Sanctuaries Act",4,1,4,"Y","N","Risk"]
[39,"Vessel pipelaying - burial and trenching","✓ ",null,null,"Sediment disturbance","Disruption of flora and fauna","Y","USA: Clean water act\nUSA: Marine Protection, Research, and Sanctuaries Act",4,1,4,"Y","N","Risk"]
[40,"Vessel seafloor releases","✓ ",null,null,"Release of spud, mud, cuttings and cement","Water pollution","Y","US EPA and other local regulations",5,2,10,"Y","Y","Risk",null,"H","N"]
[null,null,"✓ ",{"$nulls":3},"Disruption of flora and fauna","Y","US EPA and other local regulations",5,2,10,"Y","Y","Risk",null,"H","N"]
[43,"Use of RoV for subsea inspection operation","✓ ",null,null,"Release of oil and lubricant from RoV","Water pollution","Y","MARPOL Annex I",5,2,{"$f":"J77*K77","v":10},"Y","Y","Risk",null,"H","Y"]
[44,"Siesmic vessel operations","✓ ",null,null,"Underwater din","Disruption of flora and fauna - affects marine mammals which use echolocation e.g whales, dolphins","Y","Country specific guidelines\ne.g. USA: Marine mammals protection act (MMPA)",5,4,{"$f":"J78*K78","v":20},"Y","Y","Risk",null,"VH","N"]
["Office "]
[45,"Water consumption","✓ ",null,null,"Use of water","Depletion of natural resources","N"," -",2,5,{"$f":"J80*K80","v":10},"N","Y","Risk","Decreased usage of water, thus reducing overheads","H","Y"]
[46,"Electricity consumption","✓ ",null,null,"Use of electricty","Depletion of natural resources","N"," -",2,5,10,"N","Y","Risk","Decreased usage of electricity, thus reducing overheads","H","Y"]
[47,"Daily operations/records/document management","✓ ",null,null,"Use of printing paper","Depletion of natural resources","N"," -",3,5,15,"N","Y","Risk","Decreased usage of paper, thus  reducing overheads","VH","Y"]
[48,"Pest control","✓ ",null,null,"Release of pest poison","Disruption of flora and fauna","Y","Control of Vectors and Pesticides Act",3,1,3,"Y","N","Risk"]
[49,"Office waste disposal","✓ ",null,null,"Wastes produced (packaging materials, detergents, paper, cutlery  etc.)","Depletion of natural resources","N"," -",3,3,9,"Y","N","Risk",null,"VH"]
[null,null,"✓ ",{"$nulls":3},"Land pollution - increase need for landfill sites","N"," -",3,3,9,"Y","N","Risk",null,"H"]
[50,"Use of electronic equipments - toners/ink cartridges","✓ ",null,null,"Disposal of e-wastes that can be recycled","Land pollution - increase need for landfill sites","Y","Restriction of Hazardous Substances (RoHS) in Electrical and Electronic Equipment (EEE) ",4,4,16,"Y","Y","Risk","Decreased usage of toners/ink catridges, thus reducing overheads","VH","Y"]
[null,null,"✓ ",{"$nulls":3},"Depletion of natural resources","Y","Restriction of Hazardous Substances (RoHS) in Electrical and Electronic Equipment (EEE) ",4,4,16,"Y","Y","Risk",null,"VH","Y"]
[51,"Work travel (air travel, land/sea transportation)","✓ ",null,null,"Noise and production of GHGs","Air pollution","N"," -",3,3,9,"N","N","Risk",null,"VH"]
[null,null,"✓ ",{"$nulls":3},"Depletion of natural resources","N"," -",3,3,9,"N","N","Risk",null,"VH"]

{"sheet":"157 - Element 10","index":3,"n_rows":89,"n_cols":18,"rows_kept":89,"hidden":true,"merged":[[0,0,1,0],[0,1,1,1],[0,2,0,4],[0,5,1,5],[0,6,1,6],[0,7,0,8],[0,9,0,11],[0,12,1,12],[0,13,1,13],[0,14,1,14],[0,15,1,15],[0,16,1,16],[0,17,1,17],[2,0,2,15],[3,0,6,0],[3,1,4,1],[5,1,6,1],[5,5,6,5],[8,0,9,0],[8,1,9,1],[8,5,9,5],[11,0,11,15],[11,16,11,17],[12,0,14,0],[12,1,14,1],[13,5,14,5],[15,0,16,0],[15,1,16,1],[15,5,16,5],[17,0,18,0],[17,1,18,1],[17,5,18,5],[19,0,20,0],[19,1,20,1],[21,0,22,0],[21,1,22,1],[21,5,22,5],[23,0,24,0],[23,1,24,1],[23,5,24,5],[25,0,25,15],[25,16,25,17],[27,0,28,0],[27,1,28,1],[27,5,28,5],[29,0,30,0],[29,1,30,1],[29,5,30,5],[31,0,31,15],[31,16,31,17],[32,0,33,0],[32,1,33,1],[32,5,33,5],[32,15,33,15],[34,0,35,0],[34,1,35,1],[34,5,35,5],[36,0,38,0],[36,1,38,1],[36,5,37,5],[45,0,47,0],[45,1,47,1],[45,5,47,5],[48,0,49,0],[48,1,49,1],[52,0,53,0],[52,1,53,1],[52,5,53,5],[54,0,54,15],[54,16,54,17],[60,0,62,0],[60,1,62,1],[60,5,62,5],[65,0,65,15],[65,16,65,17],[66,0,67,0],[66,1,67,1],[66,5,67,5],[68,0,69,0],[68,1,69,1],[68,5,69,5],[71,0,72,0],[71,1,72,1],[71,5,72,5],[74,0,75,0],[74,1,75,1],[74,5,75,5],[78,0,78,15],[78,16,78,17],[83,0,84,0],[83,1,84,1],[83,5,84,5],[85,0,86,0],[85,1,86,1],[85,5,86,5],[85,15,86,15],[87,0,88,0],[87,1,88,1],[87,5,88,5]]}
["No.","Activity","Condition",null,null,"Aspect","Impacts","Legal requirement",null,"Criteria",null,null,"Interested party","Significant","Risk","Opportunity",null,"TSM 159"]
[null,null,"Normal","Abnormal","Emergency",null,null,"Y/N","Legal reference","Scale of impact","Likelihood","Significance factor"]
["Vessel operations"]
[1,"Machinery operations (Main propultions unit/ Diesel generators)","✓ ",null,null,"Release of SOx","Air pollution - flue gas emissions include CO2, GHGs as well as NOx and SOx which contribute to acidification of oceans and production of CO, which is harmful when inhaled","Y","MARPOL Annex VI",2,5,{"$f":"J4*K4","v":10},"Y","Y","Risk",null,"H","Y"]
[null,null,"✓ ",null,null,"Release of NOx","Air pollution - flue gas emissions include CO2, GHGs as well as NOx which contribute to acidification of oceans and production of ground level ozone and smog, which is harmful when inhaled","Y","MARPOL Annex VI",2,5,10,"Y","Y","Risk",null,"H","Y"]
[null,"Consumption of fossil fuels","✓ ",null,null,"Release of greenhouse gases (CO2)","Air pollution","Y","MARPOL Annex VI",2,5,10,"Y","Y","Risk",null,"H","Y"]
[null,null,"✓ ",{"$nulls":3},"Depletion of natural resources","Y","MARPOL Annex VI",2,5,10,"Y","Y","Risk",null,"H","Y"]
[2,"Machinery operation","✓ ",null,null,"Noise produced by machinery","Noise produced above healthy limits. May affect hearing and cause stress related illnesses","Y","SOLAS Chapter II/MLC/COSWP",3,2,6,"Y","N","Risk",null,"M"]
[3,"Use of hydraulic systems","✓ ",null,null,"Release of hydraulic oils","Water pollution","Y","MARPOL Annex I",5,2,10,"Y","Y","Risk",null,"H","Y"]
[null,null,"✓ ",{"$nulls":3},"Disruption of flora and fauna","Y","MARPOL Annex I",5,2,10,"Y","Y","Risk",null,"H","Y"]
[4,"Helicopter transportation activities","✓ ",null,null,"Noise production","Noise produced above healthy limits","Y","SOLAS Chapter II/MLC/COSWP",3,3,9,"Y","N","Risk",null,"M"]
["Cargo/ Ballast/ Mooring"]
[5,"Venting/IGS operations (Tankers only)","✓ ",null,null,"Release of vapours (VOCs)","Air pollution - flue gas emissions include CO2, GHGs as well as NOx and SOx which contribute to acidification of oceans and production of CO, which is harmful when inhaled","Y","MARPOL Annex VI",4,4,{"$f":"J13*K13","v":16},"Y","Y","Risk",null,"VH","N"]
[null,null,"✓ ",null,null,"Release of dirty and oily effluent","Water pollution","Y","MARPOL Annex I",3,4,12,"Y","Y","Risk",null,"H","Y"]
[null,null,"✓ ",{"$nulls":3},"Disruption of flora and fauna","Y","MARPOL Annex I",3,4,12,"Y","Y","Risk",null,"H","Y"]
[6,"Bunkering operations","✓ ",null,null,"Bunker spill - leakage from hoses/lines, tank overflow","Water pollution","Y","MARPOL Annex I/COLREGs",5,1,5,"Y","Y","Risk",null,"H","Y"]
[null,null,"✓ ",{"$nulls":3},"Disruption of flora and fauna","Y","MARPOL Annex I/COLREGs",5,1,5,"Y","Y","Risk",null,"H","Y"]
[7,"Ship to ship transfer","✓ ",null," ","Spill of cargo - crude oil and chemicals due to leakage from hoses/lines, tank overflow","Water pollution","Y","MARPOL Annex I",5,2,10,"Y","Y","Risk",null,"H","Y"]
[null,null,"✓ ",null," ",null,"Disruption of flora and fauna","Y","MARPOL Annex I",5,2,10,"Y","Y","Risk",null,"H","Y"]
[8,"Ballast operations","✓ ",null,null,"Transport of invasive species","Disruption of local flora and fauna","Y","BWM Convention",3,4,12,"Y","Y","Risk",null,"H","Y"]
[null,null,"✓ ",null,null,"Consumption of fuel for carrying out ballast water exchange","Depletion of natural resources","N"," -",1,3,3,"Y","N"]
[9,"Accident during vessel loading, storing and carriage of fuel, lube and hydraulic oils"," ",null,"✓ ","Release of fuel, lube and hydraulic oils","Water pollution","Y","MARPOL Annex I",5,1,5,"Y","N","Risk",null,"M"]
[{"$nulls":4},"✓ ",null,"Disruption of flora and fauna","Y","MARPOL Annex I",5,1,5,"Y","N","Risk",null,"M"]
[10,"Vessel untertaking hot work for loading and unloading of equipment/cargo","✓ ",null,null,"Release of toxic fumes/heavy metals - cadmium, lead, arsenic etc.","Air pollution","Y","MARPOL Annex VI",2,3,6,"Y","N","Risk",null,"M"]
[null,null,"✓ ",{"$nulls":3},"Overexposure to harmful chemicals","Y","MLC/COSWP",2,3,6,"Y","N","Risk",null,"M"]
["Navigation"]
[11,"Vessel navigation","✓ ",null,null,"Underwater din","Disruption of flora and fauna - affects marine mammals which use echolocation e.g whales, dolphins","Y","Country specific guidelines\ne.g. USA: Marine mammals protection act (MMPA)",2,2,{"$f":"J27*K27","v":4},"Y","N","Risk"]
[12,"Vessel navigation error",null," ","✓ ","Release of oil or chemical overboard","Water pollution","Y","MARPOL Annex I",5,2,{"$f":"J28*K28","v":10},"Y","Y","Risk",null,"H","Y"]
[{"$nulls":4},"✓ ",null,"Disruption of flora and fauna","Y","MARPOL Annex I",5,2,{"$f":"J29*K29","v":10},"Y","Y","Risk",null,"H","Y"]
[13,"Vessel navigation - speeding of vessel",null," ","✓ ","Marine accident/pollution","Water pollution","Y","MARPOL Annex I/COLREGs",5,2,{"$f":"J30*K30","v":10},"Y","Y","Risk",null,"H","N"]
[{"$nulls":3}," ","✓ ",null,"Disruption of flora and fauna","Y","MARPOL Annex I/COLREGs",5,2,{"$f":"J31*K31","v":10},"Y","Y","Risk",null,"H","N"]
["Waste management"]
[14,"ODME/OWS operations","✓ ",null,null,"Discharge of bilge water/slops over the permitted limits due to ODME/OWS malfunction","Water pollution","Y","MARPOL Annex I",5,1,{"$f":"J33*K33","v":5},"Y","Y","Risk","Cleaner operations, reduction in slop quantity to discharge to shore reception, reducing operation costs and increase cargo stowage due to availability of slop tank for cargo","H","Y"]
[null,null,"✓ ",{"$nulls":3},"Disruption of flora and fauna","Y","MARPOL Annex I",5,1,5,"Y","Y","Risk",null,"H","Y"]
[15,"Slop disposal (includes decanting of slops) (Tankers only)","✓ ",null,null,"Release of vessel cargo residues","Water pollution","Y","MARPOL Annex I",4,3,12,"Y","Y","Risk",null,"H","Y"]
[null,null,"✓ ",{"$nulls":3},"Disruption of flora and fauna","Y","MARPOL Annex I",4,3,12,"Y","Y","Risk",null,"H","Y"]
[16,"Garbage handling/waste disposal","✓ ",null,null,"Waste disposal to sea as permitted under MARPOL","Water pollution","Y","MARPOL Annex V",3,5,15,"Y","Y","Risk",null,"H","Y"]
[null,null,"✓ ",{"$nulls":3},"Disruption of flora and fauna","Y","MARPOL Annex V",3,5,15,"Y","Y","Risk",null,null,"Y"]
[null,null,"✓ ",null,null,"Waste disposal ashore","Land pollution - increase need for landfill sites","Y","MARPOL Annex V",3,5,15,"Y","Y","Risk",null,"H","Y"]
[17,"Disposal of sewage and grey water","✓ ",null,null,"Release of untreated sewage and effluent discharges","Water pollution","Y","MARPOL Annex IV",3,4,12,"Y","Y","Risk",null,"H","Y"]
[18,"Disposal of radar parts","✓ ",null,null,"Release of radioactive substances","Disruption of flora and fauna","Y","MARPOL Annex V",4,1,4,"Y","N","Risk"]
[19,"Disposal of medicines","✓ ",null,null,"Release of chemicals in medicines (i.e. antibiotics)","Disruption of flora and fauna","Y","MARPOL Annex V",3,1,3,"N","N","Risk"]
[20,"Disposal of medical wastes","✓ ",null,null,"Release of infectious materials","Disruption of flora and fauna","Y","MARPOL Annex V",3,1,3,"N","N","Risk"]
[21,"Disposal of paint chips and vessel grit","✓ ",null,null,"Release of paint chips","Water pollution","Y","MARPOL Annex V",3,1,3,"Y","N","Risk"]
[22,"Disposal of engine switches, pumps, valves, bolts and plates","✓ "," ",null,"Release of heavy metals - cadmium, mercury, lead and chromium","Disruption of flora and fauna","Y","MARPOL Annex VI",4,1,4,"Y","N","Risk"]
[23,"Disposal of used batteries","✓ ",null,null,"Release of electrolytes - heavy metals like cadmium, nickel, lithium, mercury","Water pollution","Y","MARPOL Annex V",4,1,4,"Y","N","Risk"]
[null,null,"✓ ",{"$nulls":3},"Land pollution - leaching of heavy metals from batteries into soil and ground water/water table","Y","MARPOL Annex V",4,3,12,"Y","Y","Risk",null,"H","N"]
[null,null,"✓ ",{"$nulls":3},"Disruption of flora and fauna","Y","MARPOL Annex V",4,1,4,"Y","N","Risk"]
[24,"Burning of wastes","✓ ",null,null,"Release of ashes","Water pollution","Y","MARPOL Annex V",2,5,10,"Y","Y","Risk",null,"H","Y"]
[null,null,"✓ ",null,null,"Release of toxic fumes","Air pollution","Y","MARPOL Annex VI",2,5,10,"Y","Y",null,null,"H","N"]
[25,"Disposal of oily rags","✓ ",null,null,"Accidental discharge of rags in water and release of grease","Water pollution","Y","MARPOL Annex V",3,1,3,"Y","N","Risk"]
[26,"Disposal of electronic items","✓ ",null,null,"Release of polychlorinated biphenyl (PCB)","Land pollution - increase need for landfill sites","Y","MARPOL Annex V",4,2,8,"Y","N","Risk",null,"M"]
[27,"Disposal of thermometers and similar equipment","✓ ",null,null,"Release of heavy metals - mercury","Land pollution - leaching of heavy metals from batteries into soil and ground water/water table","Y","MARPOL Annex V",3,1,3,"Y","N"]
[null,null,"✓ ",{"$nulls":3},"Disruption of flora and fauna","Y","MARPOL Annex V",4,1,4,"Y","N","Risk"]
["Maintenance"]
[28,"Vessel freezer cooling plant operations and overhauling of air-conditioning equipment","✓ ",null,null,"Release of ozone depleating substances (CFCs)","Air pollution - contributes to the depletion of ozone layer","Y","MARPOL Annex VI",4,3,{"$f":"J56*K56","v":12},"Y","Y","Risk",null,"H","Y"]
[29,"Greasing of wires and deck machinery","✓ ",null,null,"Release of lubricants/grease in water","Water pollution","Y","MARPOL Annex I",3,4,12,"Y","Y","Risk",null,"H","Y/N"]
[30,"Use of antifouling paint","✓ ",null,null,"Leaching of chemicals in antifouling paints","Disruption of flora and fauna - affects the endocrine system marine shellfish","Y","Anti-fouling Convention",4,3,12,"Y","Y","Risk",null,"H","Y"]
[31,"Use of solvents and thinners","✓ ",null,null,"Release of VOCs in thinners and solvents","Overexposure to harmful fumes","Y","MLC/COSWP",4,1,4,"Y","N","Risk"]
[32,"Fumigation","✓ ",null,null,"Release of pesticides","Disruption of flora and fauna","Y","Control of Vectors and Pesticides Act",3,1,3,"Y","N","Risk"]
[33,"Use of antifreeze","✓ ",null,null,"Release of antifreeze fluids","Water pollution","Y","MARPOL Annex II",1,2,2,"Y","N","Risk"]
[null,null,"✓ ",{"$nulls":3},"Disruption of flora and fauna","Y","MARPOL Annex II",2,2,4,"Y","N","Risk"]
[null,null,"✓ ",{"$nulls":3},"Exposure to harmful chemicals","Y","MLC",2,2,4,"Y","N","Risk"]
[34,"Use of asbestos onboard"," ","✓ ",null,"Inhalation and exposure to asbestos","Exposure to asbestos and ill effects on human health. Including asbestosis and mesothelioma","Y","MLC/SOLAS Chapter II-2",4,1,4,"Y","N","Risk"]
[35,"Dry docking - hull cleaning and painting","✓ ",null,null,"Transport of invasive species","Disruption of local flora and fauna","Y","Anti-fouling Convention",4,3,12,"Y","Y","Risk",null,"H","Y"]
["Offshore vessel operations"]
[36,"Accidents during platform supply vessel operations",null,null,"✓ ","Release of cargo - chemicals, fuel and drilling mud","Water pollution","Y","COLREGs/MARPOL/US EPA",5,2,{"$f":"J67*K67","v":10},"Y","Y","Risk",null,"M","Y"]
[{"$nulls":4},"✓ ",null,"Disruption of flora and fauna","Y","COLREGs/MARPOL/US EPA",5,2,10,"Y","Y","Risk",null,null,"Y"]
[37,"Commissioning and hydrotesting of subsea pipelines","✓ ",null,null,"Release of chemical additives","Water pollution","Y","MARPOL",4,1,4,"Y","N","Risk"]
[null,null,"✓ ",{"$nulls":3},"Disruption of flora and fauna","Y","MARPOL",4,1,4,"Y","N","Risk"]
[38,"Handling of multiple anchors (AHTS)","✓ ",null,null,"Sediment disturbance","Disruption of flora and fauna","Y","USA: Clean water act\nUSA: Marine Protection, Research, and Sanctuaries Act",3,5,15,"Y","Y","Risk",null,"VH","N"]
[39,"Vessel well abandonment","✓ ",null,null,"Presents a physical hazard and a source of water pollution","Water pollution","Y","MARPOL Annex I",4,1,4,"Y","N"]
[null,null,"✓ ",{"$nulls":3},"Disruption of flora and fauna","Y","USA: Clean water act\nUSA: Marine Protection, Research, and Sanctuaries Act",4,1,4,"Y","N","Risk"]
[40,"Vessel pipelaying - burial and trenching","✓ ",null,null,"Sediment disturbance","Disruption of flora and fauna","Y","USA: Clean water act\nUSA: Marine Protection, Research, and Sanctuaries Act",4,1,4,"Y","N","Risk"]
[41,"Vessel seafloor releases","✓ ",null,null,"Release of spud, mud, cuttings and cement","Water pollution","Y","US EPA and other local regulations",5,2,10,"Y","Y","Risk",null,"H","N"]
[null,null,"✓ ",{"$nulls":3},"Disruption of flora and fauna","Y","US EPA and other local regulations",5,2,10,"Y","Y","Risk",null,"H","N"]
[42,"Use of RoV for subsea inspection operation","✓ ",null,null,"Release of oil and lubricant from RoV","Water pollution","Y","MARPOL Annex I",5,2,{"$f":"J77*K77","v":10},"Y","Y","Risk",null,"H","Y"]
[43,"Siesmic vessel operations","✓ ",null,null,"Underwater din","Disruption of flora and fauna - affects marine mammals which use echolocation e.g whales, dolphins","Y","Country specific guidelines\ne.g. USA: Marine mammals protection act (MMPA)",5,4,{"$f":"J78*K78","v":20},"Y","Y","Risk",null,"VH","N"]
["Office"]
[44,"Water consumption","✓ ",null,null,"Use of water","Depletion of natural resources","N"," -",2,5,{"$f":"J80*K80","v":10},"N","Y","Risk","Decreased usage of water, thus reducing overheads","H","N"]
[45,"Electricity consumption","✓ ",null,null,"Use of electricty","Depletion of natural resources","N"," -",2,5,10,"N","Y","Risk","Decreased usage of electricity, thus reducing overheads","H","Y"]
[46,"Daily operations/records/document management","✓ ",null,null,"Use of printing paper","Depletion of natural resources","N"," -",3,5,15,"N","Y","Risk","Decreased usage of paper, thus  reducing overheads","VH","Y"]
[47,"Pest control","✓ ",null,null,"Release of pest poison","Disruption of flora and fauna","Y","Control of Vectors and Pesticides Act",3,1,3,"Y","N","Risk"]
[48,"Office waste disposal","✓ ",null,null,"Wastes produced (packaging materials, detergents, paper, cutlery  etc.)","Depletion of natural resources","N"," -",3,5,15,"Y","Y","Risk",null,"VH","N"]
[null,null,"✓ ",{"$nulls":3},"Land pollution - increase need for landfill sites","N"," -",3,5,15,"Y","Y","Risk",null,"H","N"]
[49,"Use of electronic equipments - toners/ink cartridges","✓ ",null,null,"Disposal of e-wastes that can be recycled","Land pollution - increase need for landfill sites","Y","Restriction of Hazardous Substances (RoHS) in Electrical and Electronic Equipment (EEE) ",4,4,16,"Y","Y","Risk","Decreased usage of toners/ink catridges, thus reducing overheads","VH","Y"]
[null,null,"✓ ",{"$nulls":3},"Depletion of natural resources","Y","Restriction of Hazardous Substances (RoHS) in Electrical and Electronic Equipment (EEE) ",4,4,16,"Y","Y","Risk",null,"VH","Y"]
[50,"Work travel (air travel, land/sea transportation)","✓ ",null,null,"Noise and production of GHGs","Air pollution","N"," -",5,5,25,"N","Y","Risk",null,"VH","Y/N"]
[null,null,"✓ ",{"$nulls":3},"Depletion of natural resources","N"," -",4,5,20,"N","Y","Risk",null,"VH","Y/N"]